[Event "Titled Tuesday Blitz June 13 Early 2023"]
[White "Vignesh N R"]
[Black "Arabidze, Meri"]
[WhiteFideId "25012215"]
[BlackFideId "13604040"]
[WhiteElo "2415"]
[BlackElo "2405"]
[Result "0-1"]
[Round "4"]
[TimeControl "180+2"]
[Date "2023.06.13"]
[WhiteClock "0:00:18"]
[BlackClock "0:01:53"]
[Board "31"]

1. e4 {[%clk 0:02:54]}  c5 {[%clk 0:03:00]} 2. Nf3 {[%clk 0:02:53]}  e6 {[%clk 0:03:00]} 3. d4 {[%clk 0:02:52]}  cxd4 {[%clk 0:03:01]} 4. Nxd4 {[%clk 0:02:53]}  Nc6 {[%clk 0:03:02]} 5. Nc3 {[%clk 0:02:52]}  a6 {[%clk 0:03:02]} 6. Nxc6 {[%clk 0:02:51]}  bxc6 {[%clk 0:03:03]} 7. Bd3 {[%clk 0:02:49]}  d5 {[%clk 0:03:04]} 8. O-O {[%clk 0:02:47]}  Nf6 {[%clk 0:03:04]} 9. Qe2 {[%clk 0:02:43]}  Be7 {[%clk 0:03:03]} 10. Rd1 {[%clk 0:02:37]}  O-O {[%clk 0:03:02]} 11. Na4 {[%clk 0:02:35]}  Qc7 {[%clk 0:02:58]} 12. c4 {[%clk 0:02:31]}  Bb7 {[%clk 0:02:48]} 13. Bd2 {[%clk 0:02:12]}  dxe4 {[%clk 0:02:45]} 14. Bxe4 {[%clk 0:02:10]}  Nxe4 {[%clk 0:02:45]} 15. Qxe4 {[%clk 0:02:11]}  c5 {[%clk 0:02:46]} 16. Qg4 {[%clk 0:01:52]}  h5 {[%clk 0:02:36]} 17. Qh3 {[%clk 0:01:37]}  Rad8 {[%clk 0:02:30]} 18. Be3 {[%clk 0:01:25]}  h4 {[%clk 0:02:16]} 19. b3 {[%clk 0:01:22]}  Rxd1+ {[%clk 0:02:09]} 20. Rxd1 {[%clk 0:01:23]}  Rd8 {[%clk 0:02:09]} 21. Qg4 {[%clk 0:01:21]}  h3 {[%clk 0:02:04]} 22. Rxd8+ {[%clk 0:01:06]}  Qxd8 {[%clk 0:02:05]} 23. gxh3 {[%clk 0:00:58]}  Qd3 {[%clk 0:02:03]} 24. Bc1 {[%clk 0:00:34]}  Bf3 {[%clk 0:01:53]} 25. Nb2 {[%clk 0:00:18]}  Qe2 {[%clk 0:01:53]} 0-1


[Site "https://www.chess.com"]

[Event "Titled Tuesday Blitz June 13 Early 2023"]
[White "Sadhwani, Raunak"]
[Black "Nagare Kaivalya Sandip"]
[WhiteFideId "35093487"]
[BlackFideId "25957929"]
[WhiteElo "2631"]
[BlackElo "2024"]
[Result "1-0"]
[Round "4"]
[TimeControl "180+2"]
[Date "2023.06.13"]
[WhiteClock "0:00:06"]
[BlackClock "0:00:06"]
[Board "36"]

1. b4 {[%clk 0:03:00]}  e5 {[%clk 0:02:53]} 2. Bb2 {[%clk 0:03:01]}  Bxb4 {[%clk 0:02:52]} 3. Bxe5 {[%clk 0:03:01]}  Nf6 {[%clk 0:02:53]} 4. Nf3 {[%clk 0:03:01]}  Nc6 {[%clk 0:02:53]} 5. Bb2 {[%clk 0:03:01]}  O-O {[%clk 0:02:52]} 6. e3 {[%clk 0:03:02]}  d5 {[%clk 0:02:53]} 7. Be2 {[%clk 0:03:00]}  Bg4 {[%clk 0:02:50]} 8. O-O {[%clk 0:03:00]}  Re8 {[%clk 0:02:50]} 9. h3 {[%clk 0:02:59]}  Bh5 {[%clk 0:02:50]} 10. d3 {[%clk 0:02:58]}  Bd6 {[%clk 0:02:49]} 11. Nbd2 {[%clk 0:02:58]}  a5 {[%clk 0:02:49]} 12. Rb1 {[%clk 0:02:57]}  Rb8 {[%clk 0:02:47]} 13. a4 {[%clk 0:02:57]}  Nd7 {[%clk 0:02:32]} 14. Nd4 {[%clk 0:02:55]}  Bxe2 {[%clk 0:02:29]} 15. Qxe2 {[%clk 0:02:56]}  Nxd4 {[%clk 0:02:26]} 16. Bxd4 {[%clk 0:02:57]}  c5 {[%clk 0:02:26]} 17. Ba1 {[%clk 0:02:57]}  b6 {[%clk 0:02:13]} 18. Qf3 {[%clk 0:02:46]}  Qg5 {[%clk 0:02:06]} 19. g3 {[%clk 0:02:34]}  Ne5 {[%clk 0:01:39]} 20. Qxd5 {[%clk 0:02:26]}  Rbd8 {[%clk 0:01:38]} 21. Qg2 {[%clk 0:02:13]}  Qh5 {[%clk 0:01:25]} 22. Rxb6 {[%clk 0:02:00]}  Qe2 {[%clk 0:01:23]} 23. Ne4 {[%clk 0:01:28]}  Nf3+ {[%clk 0:01:21]} 24. Kh1 {[%clk 0:01:28]}  Ne1 {[%clk 0:00:39]} 25. Rxe1 {[%clk 0:00:44]}  Qxe1+ {[%clk 0:00:39]} 26. Qg1 {[%clk 0:00:45]}  Qxg1+ {[%clk 0:00:37]} 27. Kxg1 {[%clk 0:00:46]}  Bf8 {[%clk 0:00:38]} 28. Bc3 {[%clk 0:00:42]}  c4 {[%clk 0:00:32]} 29. Bd4 {[%clk 0:00:41]}  cxd3 {[%clk 0:00:30]} 30. cxd3 {[%clk 0:00:42]}  Rb8 {[%clk 0:00:30]} 31. Ra6 {[%clk 0:00:35]}  Ra8 {[%clk 0:00:30]} 32. Rxa8 {[%clk 0:00:26]}  Rxa8 {[%clk 0:00:30]} 33. Nc3 {[%clk 0:00:26]}  Rc8 {[%clk 0:00:25]} 34. Nd5 {[%clk 0:00:23]}  Rc2 {[%clk 0:00:22]} 35. Bc3 {[%clk 0:00:16]}  Ra2 {[%clk 0:00:19]} 36. Bxa5 {[%clk 0:00:16]}  Rxa4 {[%clk 0:00:19]} 37. Bc3 {[%clk 0:00:17]}  f6 {[%clk 0:00:18]} 38. e4 {[%clk 0:00:16]}  Kf7 {[%clk 0:00:18]} 39. Kg2 {[%clk 0:00:16]}  Bc5 {[%clk 0:00:19]} 40. Kf3 {[%clk 0:00:13]}  Be7 {[%clk 0:00:19]} 41. d4 {[%clk 0:00:12]}  Ra2 {[%clk 0:00:18]} 42. Ke3 {[%clk 0:00:12]}  Ke6 {[%clk 0:00:17]} 43. Nf4+ {[%clk 0:00:12]}  Kd7 {[%clk 0:00:17]} 44. Nd5 {[%clk 0:00:09]}  Bd6 {[%clk 0:00:16]} 45. f4 {[%clk 0:00:08]}  Rh2 {[%clk 0:00:16]} 46. h4 {[%clk 0:00:08]}  Rg2 {[%clk 0:00:16]} 47. Kf3 {[%clk 0:00:07]}  Rc2 {[%clk 0:00:16]} 48. Be1 {[%clk 0:00:06]}  Ke6 {[%clk 0:00:16]} 49. Ne3 {[%clk 0:00:06]}  Ra2 {[%clk 0:00:15]} 50. h5 {[%clk 0:00:06]}  Ra3 {[%clk 0:00:13]} 51. Ke2 {[%clk 0:00:05]}  Ra2+ {[%clk 0:00:13]} 52. Kf3 {[%clk 0:00:05]}  Ra3 {[%clk 0:00:12]} 53. Bf2 {[%clk 0:00:05]}  Bb4 {[%clk 0:00:11]} 54. Ke2 {[%clk 0:00:05]}  Ra2+ {[%clk 0:00:11]} 55. Kf1 {[%clk 0:00:05]}  Ra1+ {[%clk 0:00:11]} 56. Kg2 {[%clk 0:00:06]}  Be1 {[%clk 0:00:11]} 57. d5+ {[%clk 0:00:06]}  Kf7 {[%clk 0:00:10]} 58. Nc2 {[%clk 0:00:06]}  Bxf2 {[%clk 0:00:07]} 59. Nxa1 {[%clk 0:00:06]}  Bc5 {[%clk 0:00:08]} 60. Nc2 {[%clk 0:00:07]}  g6 {[%clk 0:00:08]} 61. hxg6+ {[%clk 0:00:06]}  hxg6 {[%clk 0:00:09]} 62. Kf3 {[%clk 0:00:06]}  Bd6 {[%clk 0:00:07]} 63. Ne3 {[%clk 0:00:06]}  Ke7 {[%clk 0:00:06]} 64. Nc4 {[%clk 0:00:06]} 1-0


[Site "https://www.chess.com"]

[Event "Titled Tuesday Blitz June 13 Early 2023"]
[White "Lazavik, Denis"]
[Black "Kvaloy, Aksel Bu"]
[WhiteFideId "13515110"]
[BlackFideId "1528815"]
[WhiteElo "2560"]
[BlackElo "2318"]
[Result "1-0"]
[Round "4"]
[TimeControl "180+2"]
[Date "2023.06.13"]
[WhiteClock "0:00:06"]
[BlackClock "0:00:16"]
[Board "37"]

1. d4 {[%clk 0:03:00]}  Nf6 {[%clk 0:02:59]} 2. c4 {[%clk 0:03:01]}  e6 {[%clk 0:02:59]} 3. Nf3 {[%clk 0:03:02]}  d5 {[%clk 0:02:59]} 4. g3 {[%clk 0:03:03]}  Be7 {[%clk 0:02:56]} 5. Bg2 {[%clk 0:03:03]}  O-O {[%clk 0:02:56]} 6. O-O {[%clk 0:03:04]}  dxc4 {[%clk 0:02:56]} 7. Qc2 {[%clk 0:03:04]}  a6 {[%clk 0:02:54]} 8. a4 {[%clk 0:03:05]}  Nc6 {[%clk 0:02:55]} 9. Qxc4 {[%clk 0:03:04]}  Na5 {[%clk 0:02:55]} 10. Qc2 {[%clk 0:03:04]}  b6 {[%clk 0:02:55]} 11. Ne5 {[%clk 0:03:00]}  Bb7 {[%clk 0:02:55]} 12. Bxb7 {[%clk 0:03:00]}  Nxb7 {[%clk 0:02:56]} 13. Rd1 {[%clk 0:03:01]}  Rc8 {[%clk 0:02:46]} 14. Nc6 {[%clk 0:02:56]}  Qe8 {[%clk 0:02:46]} 15. Bg5 {[%clk 0:02:54]}  h6 {[%clk 0:02:45]} 16. Bxf6 {[%clk 0:02:23]}  Bxf6 {[%clk 0:02:46]} 17. e3 {[%clk 0:02:12]}  Nc5 {[%clk 0:02:28]} 18. Nb4 {[%clk 0:02:09]}  a5 {[%clk 0:02:28]} 19. dxc5 {[%clk 0:01:29]}  axb4 {[%clk 0:02:27]} 20. Nd2 {[%clk 0:01:29]}  Qc6 {[%clk 0:02:23]} 21. Rac1 {[%clk 0:01:09]}  Qxc5 {[%clk 0:02:14]} 22. Qxc5 {[%clk 0:01:05]}  bxc5 {[%clk 0:02:15]} 23. b3 {[%clk 0:01:03]}  Bc3 {[%clk 0:02:07]} 24. Ne4 {[%clk 0:01:00]}  c4 {[%clk 0:02:07]} 25. Nxc3 {[%clk 0:00:39]}  bxc3 {[%clk 0:02:06]} 26. bxc4 {[%clk 0:00:39]}  Ra8 {[%clk 0:02:05]} 27. Rxc3 {[%clk 0:00:38]}  Rxa4 {[%clk 0:02:04]} 28. Rd7 {[%clk 0:00:38]}  Rc8 {[%clk 0:01:59]} 29. c5 {[%clk 0:00:36]}  c6 {[%clk 0:01:55]} 30. Kg2 {[%clk 0:00:31]}  h5 {[%clk 0:01:51]} 31. h4 {[%clk 0:00:29]}  g6 {[%clk 0:01:49]} 32. Kf3 {[%clk 0:00:27]}  Kg7 {[%clk 0:01:48]} 33. e4 {[%clk 0:00:27]}  Kf6 {[%clk 0:01:47]} 34. e5+ {[%clk 0:00:24]}  Kxe5 {[%clk 0:01:29]} 35. Rxf7 {[%clk 0:00:23]}  Rca8 {[%clk 0:01:29]} 36. Re3+ {[%clk 0:00:21]}  Kd5 {[%clk 0:01:29]} 37. Rf6 {[%clk 0:00:19]}  Kxc5 {[%clk 0:01:04]} 38. Rexe6 {[%clk 0:00:19]}  Rc8 {[%clk 0:00:51]} 39. Rxg6 {[%clk 0:00:19]}  Rd4 {[%clk 0:00:49]} 40. Rg5+ {[%clk 0:00:17]}  Rd5 {[%clk 0:00:49]} 41. Ree5 {[%clk 0:00:17]}  Rxe5 {[%clk 0:00:32]} 42. Rxe5+ {[%clk 0:00:17]}  Kd4 {[%clk 0:00:33]} 43. Rxh5 {[%clk 0:00:17]}  c5 {[%clk 0:00:33]} 44. Rh7 {[%clk 0:00:16]}  c4 {[%clk 0:00:33]} 45. Rd7+ {[%clk 0:00:16]}  Kc3 {[%clk 0:00:33]} 46. h5 {[%clk 0:00:16]}  Kb2 {[%clk 0:00:26]} 47. Rb7+ {[%clk 0:00:16]}  Kc2 {[%clk 0:00:23]} 48. h6 {[%clk 0:00:09]}  Rh8 {[%clk 0:00:23]} 49. h7 {[%clk 0:00:05]}  Kd2 {[%clk 0:00:22]} 50. Rd7+ {[%clk 0:00:05]}  Kc2 {[%clk 0:00:17]} 51. g4 {[%clk 0:00:05]}  c3 {[%clk 0:00:17]} 52. g5 {[%clk 0:00:06]}  Kb1 {[%clk 0:00:17]} 53. g6 {[%clk 0:00:06]}  c2 {[%clk 0:00:17]} 54. Rb7+ {[%clk 0:00:05]}  Ka1 {[%clk 0:00:16]} 55. Rc7 {[%clk 0:00:06]} 1-0


[Site "https://www.chess.com"]

[Event "Titled Tuesday Blitz June 13 Early 2023"]
[White "Bok, Benjamin"]
[Black "Iskusnyh, Sergei"]
[WhiteFideId "1017063"]
[BlackFideId "4120027"]
[WhiteElo "2657"]
[BlackElo "2492"]
[Result "1-0"]
[Round "4"]
[TimeControl "180+2"]
[Date "2023.06.13"]
[WhiteClock "0:00:16"]
[BlackClock "0:00:00"]
[Board "39"]

1. d4 {[%clk 0:02:56]}  d5 {[%clk 0:02:59]} 2. c4 {[%clk 0:02:56]}  c6 {[%clk 0:02:59]} 3. Nf3 {[%clk 0:02:51]}  Nf6 {[%clk 0:02:59]} 4. cxd5 {[%clk 0:02:48]}  cxd5 {[%clk 0:02:59]} 5. Nc3 {[%clk 0:02:45]}  Nc6 {[%clk 0:02:59]} 6. Bf4 {[%clk 0:02:44]}  a6 {[%clk 0:02:58]} 7. Rc1 {[%clk 0:02:44]}  Bf5 {[%clk 0:02:56]} 8. e3 {[%clk 0:02:43]}  e6 {[%clk 0:02:54]} 9. Qb3 {[%clk 0:02:43]}  Ra7 {[%clk 0:02:50]} 10. Be2 {[%clk 0:02:42]}  Bd6 {[%clk 0:02:38]} 11. Bxd6 {[%clk 0:02:40]}  Qxd6 {[%clk 0:02:37]} 12. O-O {[%clk 0:02:41]}  O-O {[%clk 0:02:36]} 13. Na4 {[%clk 0:02:39]}  Nd7 {[%clk 0:02:33]} 14. Nc5 {[%clk 0:02:34]}  Nxc5 {[%clk 0:02:31]} 15. Rxc5 {[%clk 0:02:35]}  Bg4 {[%clk 0:01:22]} 16. Qb6 {[%clk 0:02:34]}  Bxf3 {[%clk 0:01:18]} 17. Bxf3 {[%clk 0:02:35]}  Raa8 {[%clk 0:00:59]} 18. Qxb7 {[%clk 0:02:28]}  Ne5 {[%clk 0:00:28]} 19. Qc7 {[%clk 0:01:34]}  Nxf3+ {[%clk 0:00:26]} 20. gxf3 {[%clk 0:01:34]}  Qxc7 {[%clk 0:00:26]} 21. Rxc7 {[%clk 0:01:35]}  Rfb8 {[%clk 0:00:26]} 22. Rfc1 {[%clk 0:01:34]}  g6 {[%clk 0:00:24]} 23. b3 {[%clk 0:01:26]}  a5 {[%clk 0:00:24]} 24. Rd7 {[%clk 0:01:26]}  a4 {[%clk 0:00:22]} 25. Rcc7 {[%clk 0:01:26]}  axb3 {[%clk 0:00:22]} 26. axb3 {[%clk 0:01:27]}  Rf8 {[%clk 0:00:20]} 27. Rb7 {[%clk 0:01:25]}  Ra2 {[%clk 0:00:20]} 28. b4 {[%clk 0:01:25]}  Rb2 {[%clk 0:00:20]} 29. b5 {[%clk 0:01:25]}  Kg7 {[%clk 0:00:20]} 30. b6 {[%clk 0:01:26]}  Kf6 {[%clk 0:00:18]} 31. f4 {[%clk 0:01:21]}  h6 {[%clk 0:00:18]} 32. h4 {[%clk 0:01:21]}  g5 {[%clk 0:00:17]} 33. fxg5+ {[%clk 0:01:10]}  hxg5 {[%clk 0:00:17]} 34. h5 {[%clk 0:00:35]}  g4 {[%clk 0:00:17]} 35. h6 {[%clk 0:00:35]}  Kg6 {[%clk 0:00:16]} 36. h7 {[%clk 0:00:35]}  Kxh7 {[%clk 0:00:12]} 37. Rxf7+ {[%clk 0:00:35]}  Rxf7 {[%clk 0:00:13]} 38. Rxf7+ {[%clk 0:00:36]}  Kg6 {[%clk 0:00:13]} 39. Rb7 {[%clk 0:00:34]}  g3 {[%clk 0:00:14]} 40. fxg3 {[%clk 0:00:17]}  Kf5 {[%clk 0:00:14]} 41. Rb8 {[%clk 0:00:16]}  Ke4 {[%clk 0:00:14]} 42. b7 {[%clk 0:00:16]}  Kxe3 {[%clk 0:00:13]} 43. g4 {[%clk 0:00:17]}  Kxd4 {[%clk 0:00:07]} 44. g5 {[%clk 0:00:17]}  e5 {[%clk 0:00:06]} 45. g6 {[%clk 0:00:17]}  e4 {[%clk 0:00:06]} 46. g7 {[%clk 0:00:18]}  e3 {[%clk 0:00:04]} 47. g8=Q {[%clk 0:00:18]}  e2 {[%clk 0:00:00]} 48. Kf2 {[%clk 0:00:16]} 1-0


[Site "https://www.chess.com"]

[Event "Titled Tuesday Blitz June 13 Early 2023"]
[White "Dixit, Nikhil"]
[Black "Tari, Aryan"]
[WhiteFideId "5059534"]
[BlackFideId "1510045"]
[WhiteElo "2207"]
[BlackElo "2586"]
[Result "0-1"]
[Round "4"]
[TimeControl "180+2"]
[Date "2023.06.13"]
[WhiteClock "0:00:15"]
[BlackClock "0:00:43"]
[Board "43"]

1. e4 {[%clk 0:03:00]}  e5 {[%clk 0:02:58]} 2. Nf3 {[%clk 0:03:00]}  Nc6 {[%clk 0:02:58]} 3. Nc3 {[%clk 0:03:00]}  Nf6 {[%clk 0:02:57]} 4. d4 {[%clk 0:03:00]}  exd4 {[%clk 0:02:57]} 5. Nxd4 {[%clk 0:03:00]}  Bb4 {[%clk 0:02:58]} 6. Nxc6 {[%clk 0:03:00]}  bxc6 {[%clk 0:02:59]} 7. Bd3 {[%clk 0:02:59]}  d5 {[%clk 0:02:59]} 8. exd5 {[%clk 0:02:59]}  O-O {[%clk 0:02:59]} 9. O-O {[%clk 0:02:59]}  cxd5 {[%clk 0:02:59]} 10. Bg5 {[%clk 0:02:59]}  Be7 {[%clk 0:02:49]} 11. Bxf6 {[%clk 0:02:42]}  Bxf6 {[%clk 0:02:50]} 12. Qh5 {[%clk 0:02:38]}  g6 {[%clk 0:02:39]} 13. Qxd5 {[%clk 0:02:34]}  Rb8 {[%clk 0:02:35]} 14. Qxd8 {[%clk 0:01:57]}  Rxd8 {[%clk 0:02:36]} 15. Rab1 {[%clk 0:01:54]}  Be6 {[%clk 0:02:32]} 16. a3 {[%clk 0:01:49]}  Bxc3 {[%clk 0:01:47]} 17. bxc3 {[%clk 0:01:50]}  Rb6 {[%clk 0:01:48]} 18. Rb4 {[%clk 0:01:44]}  Rc6 {[%clk 0:01:34]} 19. Ra4 {[%clk 0:01:36]}  Rxc3 {[%clk 0:01:29]} 20. Rxa7 {[%clk 0:01:36]}  c5 {[%clk 0:01:30]} 21. h4 {[%clk 0:01:00]}  Rd4 {[%clk 0:01:25]} 22. h5 {[%clk 0:00:41]}  Kg7 {[%clk 0:01:23]} 23. hxg6 {[%clk 0:00:41]}  hxg6 {[%clk 0:01:24]} 24. Re1 {[%clk 0:00:40]}  Bd5 {[%clk 0:01:17]} 25. Rc7 {[%clk 0:00:30]}  c4 {[%clk 0:01:14]} 26. a4 {[%clk 0:00:30]}  Ra3 {[%clk 0:01:04]} 27. Bf1 {[%clk 0:00:30]}  Rd2 {[%clk 0:00:57]} 28. Rd7 {[%clk 0:00:24]}  c3 {[%clk 0:00:52]} 29. Ree7 {[%clk 0:00:24]}  Ra1 {[%clk 0:00:44]} 30. a5 {[%clk 0:00:15]}  Bc4 {[%clk 0:00:43]} 0-1


[Site "https://www.chess.com"]

[Event "Titled Tuesday Blitz June 13 Early 2023"]
[White "Kezin, Roman"]
[Black "Ahmad, Khagan"]
[WhiteFideId "24124621"]
[BlackFideId "13431552"]
[WhiteElo "2504"]
[BlackElo "2209"]
[Result "0-1"]
[Round "4"]
[TimeControl "180+2"]
[Date "2023.06.13"]
[WhiteClock "0:00:00"]
[BlackClock "0:00:04"]
[Board "44"]

1. b3 {[%clk 0:03:00]}  d5 {[%clk 0:02:52]} 2. Bb2 {[%clk 0:03:01]}  Nc6 {[%clk 0:02:52]} 3. e3 {[%clk 0:03:00]}  e5 {[%clk 0:02:50]} 4. Bb5 {[%clk 0:02:59]}  e4 {[%clk 0:02:39]} 5. c4 {[%clk 0:02:46]}  a6 {[%clk 0:02:37]} 6. Bxc6+ {[%clk 0:02:44]}  bxc6 {[%clk 0:02:38]} 7. Nc3 {[%clk 0:02:44]}  Nf6 {[%clk 0:02:38]} 8. Nge2 {[%clk 0:02:44]}  Bd6 {[%clk 0:02:37]} 9. d3 {[%clk 0:02:41]}  exd3 {[%clk 0:02:31]} 10. Qxd3 {[%clk 0:02:42]}  O-O {[%clk 0:02:31]} 11. O-O-O {[%clk 0:02:40]}  dxc4 {[%clk 0:02:28]} 12. Qxc4 {[%clk 0:02:39]}  Rb8 {[%clk 0:02:21]} 13. Nd4 {[%clk 0:02:34]}  Rb4 {[%clk 0:02:13]} 14. Qe2 {[%clk 0:02:33]}  Qe8 {[%clk 0:02:01]} 15. Rd2 {[%clk 0:02:25]}  c5 {[%clk 0:01:58]} 16. Nc2 {[%clk 0:02:25]}  Rb8 {[%clk 0:01:53]} 17. Na3 {[%clk 0:02:18]}  Ne4 {[%clk 0:01:46]} 18. Nxe4 {[%clk 0:02:17]}  Qxe4 {[%clk 0:01:47]} 19. f3 {[%clk 0:02:18]}  Qb7 {[%clk 0:01:35]} 20. Nc4 {[%clk 0:02:15]}  Be6 {[%clk 0:01:35]} 21. Rhd1 {[%clk 0:02:10]}  Be7 {[%clk 0:01:19]} 22. Bc3 {[%clk 0:01:13]}  Qb5 {[%clk 0:00:56]} 23. Na5 {[%clk 0:01:03]}  Bd6 {[%clk 0:00:54]} 24. Qxb5 {[%clk 0:01:01]}  axb5 {[%clk 0:00:54]} 25. Nc6 {[%clk 0:00:54]}  Rb6 {[%clk 0:00:53]} 26. Ne5 {[%clk 0:00:54]}  f6 {[%clk 0:00:51]} 27. Nd3 {[%clk 0:00:49]}  c4 {[%clk 0:00:51]} 28. bxc4 {[%clk 0:00:46]}  Bxc4 {[%clk 0:00:49]} 29. Nb4 {[%clk 0:00:43]}  Ra8 {[%clk 0:00:41]} 30. g3 {[%clk 0:00:39]}  Ra4 {[%clk 0:00:38]} 31. Rb2 {[%clk 0:00:38]}  c5 {[%clk 0:00:34]} 32. Nd5 {[%clk 0:00:38]}  Bxd5 {[%clk 0:00:33]} 33. Rxd5 {[%clk 0:00:39]}  b4 {[%clk 0:00:33]} 34. e4 {[%clk 0:00:29]}  Kf7 {[%clk 0:00:30]} 35. Be1 {[%clk 0:00:23]}  Be5 {[%clk 0:00:29]} 36. Rc2 {[%clk 0:00:19]}  c4 {[%clk 0:00:29]} 37. Rxc4 {[%clk 0:00:18]}  Rxa2 {[%clk 0:00:28]} 38. Bxb4 {[%clk 0:00:08]}  Rba6 {[%clk 0:00:17]} 39. Rd7+ {[%clk 0:00:05]}  Kg6 {[%clk 0:00:16]} 40. Bc3 {[%clk 0:00:02]}  Bxc3 {[%clk 0:00:10]} 41. Rxc3 {[%clk 0:00:02]}  Rxh2 {[%clk 0:00:11]} 42. Rc2 {[%clk 0:00:02]}  Ra1+ {[%clk 0:00:08]} 43. Kb2 {[%clk 0:00:02]}  Ra2+ {[%clk 0:00:08]} 44. Kxa2 {[%clk 0:00:02]}  Rxc2+ {[%clk 0:00:09]} 45. Kb3 {[%clk 0:00:03]}  Rg2 {[%clk 0:00:09]} 46. g4 {[%clk 0:00:04]}  Rg3 {[%clk 0:00:09]} 47. Rd3 {[%clk 0:00:04]}  Kg5 {[%clk 0:00:09]} 48. Kc4 {[%clk 0:00:04]}  Kf4 {[%clk 0:00:09]} 49. Rd7 {[%clk 0:00:04]}  g5 {[%clk 0:00:09]} 50. Rxh7 {[%clk 0:00:05]}  Rxf3 {[%clk 0:00:09]} 51. Kd5 {[%clk 0:00:03]}  Kxg4 {[%clk 0:00:08]} 52. Ke6 {[%clk 0:00:02]}  Rf4 {[%clk 0:00:08]} 53. Kd5 {[%clk 0:00:02]}  Kg3 {[%clk 0:00:07]} 54. Rh6 {[%clk 0:00:01]}  g4 {[%clk 0:00:07]} 55. Rg6 {[%clk 0:00:02]}  Kf3 {[%clk 0:00:07]} 56. Rh6 {[%clk 0:00:01]}  g3 {[%clk 0:00:04]} 57. Rg6 {[%clk 0:00:01]}  g2 {[%clk 0:00:04]} 58. e5 {[%clk 0:00:01]}  fxe5 {[%clk 0:00:03]} 59. Kxe5 {[%clk 0:00:02]}  Rg4 {[%clk 0:00:04]} 60. Rf6+ {[%clk 0:00:00]}  Ke3 {[%clk 0:00:04]} 0-1


[Site "https://www.chess.com"]

[Event "Titled Tuesday Blitz June 13 Early 2023"]
[White "Timofeev, Artyom"]
[Black "Zhao, Erick"]
[WhiteFideId "4140419"]
[BlackFideId "30946930"]
[WhiteElo "2570"]
[BlackElo "2585"]
[Result "1-0"]
[Round "4"]
[TimeControl "180+2"]
[Date "2023.06.13"]
[WhiteClock "0:00:41"]
[BlackClock "0:00:14"]
[Board "45"]

1. c4 {[%clk 0:03:00]}  d5 {[%clk 0:02:58]} 2. cxd5 {[%clk 0:03:00]}  c6 {[%clk 0:02:58]} 3. dxc6 {[%clk 0:02:59]}  Nxc6 {[%clk 0:02:59]} 4. Nc3 {[%clk 0:02:58]}  Nf6 {[%clk 0:02:59]} 5. g3 {[%clk 0:02:58]}  e5 {[%clk 0:03:00]} 6. Bg2 {[%clk 0:02:58]}  Bc5 {[%clk 0:03:00]} 7. d3 {[%clk 0:02:55]}  O-O {[%clk 0:02:58]} 8. Nf3 {[%clk 0:02:54]}  e4 {[%clk 0:02:58]} 9. Nxe4 {[%clk 0:02:35]}  Nxe4 {[%clk 0:02:57]} 10. dxe4 {[%clk 0:02:36]}  Qxd1+ {[%clk 0:02:58]} 11. Kxd1 {[%clk 0:02:36]}  Bxf2 {[%clk 0:02:59]} 12. e3 {[%clk 0:02:34]}  f5 {[%clk 0:02:36]} 13. e5 {[%clk 0:02:33]}  f4 {[%clk 0:02:19]} 14. gxf4 {[%clk 0:02:33]}  Bg4 {[%clk 0:02:20]} 15. Ke2 {[%clk 0:02:32]}  Bh4 {[%clk 0:02:20]} 16. Bd2 {[%clk 0:02:31]}  Rae8 {[%clk 0:02:16]} 17. b4 {[%clk 0:02:23]}  g5 {[%clk 0:02:02]} 18. b5 {[%clk 0:02:22]}  Nd8 {[%clk 0:02:00]} 19. Rhg1 {[%clk 0:02:12]}  Kh8 {[%clk 0:01:43]} 20. Kd3 {[%clk 0:02:01]}  Bxf3 {[%clk 0:01:41]} 21. Bxf3 {[%clk 0:02:01]}  gxf4 {[%clk 0:01:42]} 22. exf4 {[%clk 0:02:00]}  Ne6 {[%clk 0:01:43]} 23. Rg4 {[%clk 0:01:57]}  Bg5 {[%clk 0:01:38]} 24. Ke4 {[%clk 0:01:47]}  Rd8 {[%clk 0:01:21]} 25. Be3 {[%clk 0:01:08]}  Bxf4 {[%clk 0:00:31]} 26. Bxf4 {[%clk 0:01:08]}  Rd4+ {[%clk 0:00:31]} 27. Ke3 {[%clk 0:01:08]}  Rdxf4 {[%clk 0:00:31]} 28. Rxf4 {[%clk 0:01:06]}  Nxf4 {[%clk 0:00:32]} 29. Bxb7 {[%clk 0:01:04]}  Ng6 {[%clk 0:00:33]} 30. e6 {[%clk 0:01:00]}  Re8 {[%clk 0:00:31]} 31. Bd5 {[%clk 0:01:00]}  Nf8 {[%clk 0:00:30]} 32. Kd4 {[%clk 0:00:57]}  Nxe6+ {[%clk 0:00:30]} 33. Bxe6 {[%clk 0:00:57]}  Rxe6 {[%clk 0:00:30]} 34. a4 {[%clk 0:00:57]}  Rh6 {[%clk 0:00:30]} 35. Ra2 {[%clk 0:00:56]}  Kg7 {[%clk 0:00:30]} 36. Kc5 {[%clk 0:00:56]}  Kf7 {[%clk 0:00:30]} 37. Re2 {[%clk 0:00:44]}  a5 {[%clk 0:00:16]} 38. b6 {[%clk 0:00:42]}  Rh4 {[%clk 0:00:14]} 39. Kb5 {[%clk 0:00:41]} 1-0


[Site "https://www.chess.com"]